[Event "Marshall CC FIDE Premier March 2024"]
[Site "New York"]
[Date "2024.03.02"]
[Round "2.2"]
[White "Zeltsan, Joseph"]
[Black "Das, Aditeya"]
[Result "1-0"]
[ECO "D78"]
[WhiteElo "2419"]
[BlackElo "1900"]
[Annotator "TA"]
[PlyCount "91"]
[EventDate "2024.02.02"]
[EventType "swiss"]
[EventCountry "USA"]
[SourceTitle "playchess.com"]
[Source "ChessBase"]
[SourceQuality "1"]
[TimeControl "5400+30"]

{[%evp 15,91,0,16,4,10,15,16,7,5,6,19,10,16,16,25,44,20,15,38,27,24,16,15,0,0,0,0,-7,-7,-8,0,0,2,0,51,47,58,51,58,56,53,47,158,161,152,147,172,172,205,188,189,185,237,236,297,304,306,306,498,441,645,634,994,930,990,983,1787,1727,1773,1791,1518,1477,29986,29987,29987,29988,29987,29988]} 1. Nf3 {[%emt 0:00:02]} Nf6 {[%emt 0:07:30]} 2. g3 {[%emt 0:00:13]} d5 {[%emt 1:24:00]} 3. Bg2 {[%emt 0:00:06]} g6 {[%emt 0:00:00]} 4. O-O {[%emt 0:00:04]} Bg7 {[%emt 0:00:00]} 5. d4 {[%emt 0:02:17]} O-O {[%emt 0:00:00]} 6. c4 {[%emt 0:00:04]} c6 {[%emt 0:00:00]} 7. Qb3 {[%emt 0:00:38]} Qb6 {[%emt 0:00:00]} 8. Nc3 {[%emt 0:00:21]} Bf5 {[%emt 0:00:00]} 9. Re1 {[%emt 0:18:30]} Nbd7 {[%emt 0:00:00]} 10. cxd5 {[%emt 0:09:58]} (10. h3 {with more complications.} e6 11. Bf4 Ne4 12. g4) 10... Qxb3 {[%emt 0:00:00]} 11. axb3 {[%emt 0:01:03] Black must now prevent e4. The position is equal.} cxd5 {[%emt 0:00:00]} 12. Bf4 {[%emt 0:01:27]} a6 {[%emt 0:00:00]} 13. Rec1 {[%emt 0:03:26]} Rfc8 {[%emt 0:00:00]} 14. Ne5 {[%emt 0:03:08]} Nb6 {[%emt 0:00:00]} 15. h3 {[%emt 0:03:40]} h5 {[%emt 0:00:00]} 16. Ra5 {[%emt 0:05:47]} Be6 {[%emt 0:00:00]} 17. Nd3 {[%emt 0:00:40]} Bd7 {[%emt 0:00:00]} 18. e3 {[%emt 0:06:57][%cal Oa5c5]} ({Don't play} 18. Bxd5 Nfxd5 19. Nxd5 Rxc1+ 20. Bxc1 Nxd5 21. Rxd5 Bc6 $17 (21... Bxh3 22. Nf4 $17)) 18... e6 {[%emt 0:00:00]} 19. Be5 {[%emt 0:02:26]} Bc6 {[%emt 0:00:00]} 20. Rca1 {[%emt 0:01:43]} Ne8 {[%emt 0:00:00]} 21. Bxg7 {[%emt 0:00:16]} Kxg7 {[%emt 0:00:00]} 22. Bf1 {[%emt 0:01:23]} Nd7 {[%emt 0:00:00]} 23. b4 {[%emt 0:00:47] Hoping for b5.} Nc7 {[%emt 0:00:00]} 24. R5a2 {[%emt 0:05:24]} b6 {[%emt 0:00:00]} (24... h4 $11) 25. Ne5 {[%emt 0:00:50]} Nxe5 {[%emt 0:00:00]} 26. dxe5 {[%emt 0:00:02][%cal Rf1a6]} b5 {[%emt 0:00:00] Black is weak on the dark squares} 27. Ne2 {[%emt 0:00:54]} Bb7 {[%emt 0:00:00]} 28. Nd4 {[%emt 0:00:42]} f6 {[%emt 0:00:00] White now steadily converts the win.} (28... Rab8 $14) 29. f4 $16 {[%emt 0:00:45]} Kf7 {[%emt 0:00:00]} 30. Bd3 {[%emt 0:02:02] White is much more active.} f5 {[%emt 0:00:00]} 31. Kf2 {[%emt 0:02:44]} Ke7 {[%emt 0:00:00]} 32. Ra3 {[%emt 0:01:27]} Rab8 {[%emt 0:00:00]} 33. Rh1 {[%emt 0:02:59]} Na8 {[%emt 0:00:00] [#]} (33... Kf7 $142 34. g4 hxg4) 34. g4 $1 $18 {[%emt 0:00:25][%cal Bg3g4,Bg4f5][%mdl 544]} h4 {[%emt 0:00:00]} (34... Rg8 35. Rc3) 35. Rg1 {[%emt 0:00:07][%cal Rg4f5] gxf5 would now be deadly.} Kf7 {[%emt 0:00:00]} 36. Raa1 {[%emt 0:01:34]} Nb6 $2 {[%emt 0:00:00]} (36... Nc7 37. Rg2 Rh8) 37. Nxe6 {[%emt 0:00:43]} Nc4 {[%emt 0:00:00]} (37... Kxe6 $142 38. gxf5+ Kd7 39. Rxg6 (39. fxg6 Rg8 $18) 39... Nc4) 38. gxf5 {[%emt 0:01:36]} Nxb2 {[%emt 0:00:00] [#]} 39. Rxg6 $1 {[%emt 0:03:26] Threatening mate with Rg7+.} Nxd3+ {[%emt 0:00:16]} (39... Rg8 40. Ng5+) 40. Ke2 {[%emt 0:00:01] White wants to mate with Rg7+.} Nxe5 {[%emt 0:03:51]} 41. fxe5 {[%emt 0:00:06][%cal Bf4e5,Be5e6][%mdl 32]} Rg8 {[%emt 0:00:44] Repels Rg7+} 42. Rag1 {[%emt 0:00:25]} Rxg6 {[%emt 0:00:54]} 43. Rxg6 {[%emt 0:00:07]} Rg8 {[%emt 0:00:14] Wards off Rg7+} 44. Ng5+ {[%emt 0:00:02] White mates.} Kf8 {[%emt 0:00:17]} 45. Nh7+ {[%emt 0:00:05]} Kf7 {[%emt 0:00:16]} 46. e6+ {[%emt 0:00:06] Weighted Error Value: White=0.05 (flawless) /Black=0.48.  Mistake:       	---       	Black=5      Inaccurate:     	---       	Black=1      OK:         	White=11    	Black=12     Best:        	---       	Black=1} 1-0

[Event "Marshall CC FIDE Premier March 2024"]
[Site "New York"]
[Date "2024.03.02"]
[Round "2.4"]
[White "Chachere, Theodore"]
[Black "Hebbar, Eshaan"]
[Result "1/2-1/2"]
[ECO "D35"]
[WhiteElo "1864"]
[BlackElo "2187"]
[Annotator "RC"]
[PlyCount "79"]
[EventDate "2024.02.02"]
[EventType "swiss"]
[EventCountry "USA"]
[SourceTitle "playchess.com"]
[Source "ChessBase"]
[SourceQuality "1"]
[TimeControl "5400+30"]

1. d4 {[%emt 0:00:03]} d5 {[%emt 0:00:05]} 2. c4 {[%emt 0:00:04]} e6 {[%emt 0:00:04]} 3. Nc3 {[%emt 0:00:05]} Nf6 {[%emt 0:00:04]} 4. Bg5 {[%emt 0:00:07]} Bb4 {[%emt 0:01:40]} 5. cxd5 {[%emt 0:00:17]} exd5 {[%emt 0:00:45]} 6. e3 {[%emt 0:02:22]} O-O {[%emt 0:00:17]} 7. Bd3 {[%emt 0:00:46]} h6 {[%emt 0:04:06]} 8. Bh4 {[%emt 0:00:36]} Re8 {[%emt 0:02:53]} 9. Nge2 {[%emt 0:03:42]} c6 {[%emt 0:01:00]} 10. O-O {[%emt 0:00:53]} Nbd7 {[%emt 0:01:54]} 11. Qc2 {[%emt 0:00:45]} a5 {[%emt 0:04:22]} 12. h3 {[%emt 0:06:01]} Be7 {[%emt 0:00:23]} 13. f3 {[%emt 0:02:44]} b5 {[%emt 0:11:35]} 14. Bf2 {[%emt 0:01:05]} Ba6 {[%emt 0:04:24]} 15. e4 {[%emt 0:21:18]} dxe4 {[%emt 0:02:45]} 16. fxe4 {[%emt 0:00:26]} b4 {[%emt 0:00:14]} 17. Bxa6 {[%emt 0:01:19]} Rxa6 {[%emt 0:00:26]} 18. Na4 {[%emt 0:01:05]} Bf8 {[%emt 0:01:53]} 19. Ng3 {[%emt 0:00:53]} g6 {[%emt 0:03:14]} 20. Rae1 {[%emt 0:05:49]} Re6 {[%emt 0:03:34]} 21. b3 {[%emt 0:10:54]} Ra8 {[%emt 0:02:58]} 22. Nb2 {[%emt 0:00:33]} Nb6 {[%emt 0:07:02]} 23. Nc4 {[%emt 0:05:32]} Nxc4 {[%emt 0:00:27]} 24. bxc4 {[%emt 0:00:03]} Nd7 {[%emt 0:02:01]} 25. c5 {[%emt 0:08:22]} Qb8 {[%emt 0:13:34]} 26. Rd1 {[%emt 0:09:19]} Re8 {[%emt 0:04:19]} 27. Qc4 {[%emt 0:04:48]} Kg7 {[%emt 0:07:25]} 28. e5 {[%emt 0:02:48]} Qd8 {[%emt 0:06:03]} 29. Be3 {[%emt 0:01:52]} Re6 {[%emt 0:04:30]} 30. Ne4 {[%emt 0:01:29]} Qe8 {[%emt 0:02:05]} 31. Bc1 {[%emt 0:03:02]} Kg8 {[%emt 0:00:50]} 32. Rf3 {[%emt 0:00:28]} f5 {[%emt 0:04:47]} 33. exf6 {[%emt 0:01:31]} Qf7 {[%emt 0:00:05]} 34. Qd3 {[%emt 0:06:29]} Rae8 {[%emt 0:00:39]} 35. Ng3 {[%emt 0:00:00]} Nxf6 {[%emt 0:01:01]} 36. Rdf1 {[%emt 0:00:00]} Bg7 {[%emt 0:00:09]} 37. d5 {[%emt 0:00:00]} cxd5 {[%emt 0:00:37]} 38. Bb2 {[%emt 0:02:00]} Qe7 {[%emt 0:05:20]} 39. Qxg6 {[%emt 0:00:30]} Qf7 {[%emt 0:00:30]} 40. Qd3 1/2-1/2

[Event "Marshall CC FIDE Premier March 2024"]
[Site "New York"]
[Date "2024.03.02"]
[Round "2.5"]
[White "Panico, Nick"]
[Black "Zhu, Linxi"]
[Result "1/2-1/2"]
[ECO "A03"]
[WhiteElo "1939"]
[BlackElo "1981"]
[Annotator "RC"]
[PlyCount "84"]
[EventDate "2024.02.02"]
[EventType "swiss"]
[EventCountry "USA"]
[SourceTitle "playchess.com"]
[Source "ChessBase"]
[SourceQuality "1"]
[TimeControl "5400+30"]

1. f4 {[%emt 0:01:27]} d5 {[%emt 0:01:38]} 2. Nf3 {[%emt 0:00:05]} g6 {[%emt 0:00:39]} 3. g3 {[%emt 0:00:08]} Bg7 {[%emt 0:00:04]} 4. Bg2 {[%emt 0:00:04]} Nf6 {[%emt 0:00:14]} 5. O-O {[%emt 0:00:07]} O-O {[%emt 0:00:05]} 6. d3 {[%emt 0:00:06]} c5 {[%emt 0:00:16]} 7. c3 {[%emt 0:00:05]} Nc6 {[%emt 0:00:27]} 8. Na3 {[%emt 0:00:04]} a6 {[%emt 0:03:55]} 9. Ne5 {[%emt 0:09:01]} Bf5 {[%emt 0:02:11]} 10. Nxc6 {[%emt 0:11:07]} bxc6 {[%emt 0:00:17]} 11. Qe1 {[%emt 0:00:03]} Qd7 {[%emt 0:09:56]} 12. e4 {[%emt 0:00:43]} Bh3 {[%emt 0:01:23]} 13. e5 {[%emt 0:01:59]} Ne8 {[%emt 0:02:37]} 14. Bxh3 {[%emt 0:27:02]} Qxh3 {[%emt 0:00:07]} 15. Be3 {[%emt 0:00:11]} Rb8 {[%emt 0:01:12]} 16. Rb1 {[%emt 0:03:45]} f6 {[%emt 0:01:35]} 17. Bxc5 {[%emt 0:04:41]} fxe5 {[%emt 0:00:23]} 18. fxe5 {[%emt 0:00:07]} Rxf1+ {[%emt 0:00:54]} 19. Qxf1 {[%emt 0:00:08]} Qxf1+ {[%emt 0:00:09]} 20. Kxf1 {[%emt 0:00:08]} Bxe5 {[%emt 0:00:13]} 21. Bxe7 {[%emt 0:00:22]} Rb7 {[%emt 0:02:04]} 22. Bc5 {[%emt 0:00:28]} Nf6 {[%emt 0:00:18]} 23. Kg2 {[%emt 0:03:49]} Kg7 {[%emt 0:03:49]} 24. h3 {[%emt 0:12:26]} g5 {[%emt 0:03:12]} 25. Bf2 {[%emt 0:07:36]} a5 {[%emt 0:04:22]} 26. Re1 {[%emt 0:01:57]} Bd6 {[%emt 0:02:22]} 27. Re2 {[%emt 0:00:16]} Kf7 {[%emt 0:01:07]} 28. Bd4 {[%emt 0:04:42]} c5 {[%emt 0:00:12]} 29. Bxf6 {[%emt 0:00:52]} Kxf6 {[%emt 0:00:08]} 30. Nb1 {[%emt 0:01:26]} a4 {[%emt 0:05:17]} 31. c4 {[%emt 0:01:00]} dxc4 {[%emt 0:00:56]} 32. dxc4 {[%emt 0:00:18]} Be5 {[%emt 0:00:34]} 33. Nd2 {[%emt 0:02:46]} Bd4 {[%emt 0:00:53]} 34. b3 {[%emt 0:01:20]} axb3 {[%emt 0:00:48]} 35. Nxb3 {[%emt 0:01:51]} Rb4 {[%emt 0:00:40]} 36. Rc2 {[%emt 0:00:05]} Ke5 {[%emt 0:00:05]} 37. Kf3 {[%emt 0:00:11]} h5 {[%emt 0:00:58]} 38. g4 {[%emt 0:00:28]} h4 {[%emt 0:00:57]} 39. Nd2 {[%emt 0:00:33]} Ra4 {[%emt 0:00:41]} 40. Nb3 {[%emt 0:00:43]} Rb4 {[%emt 0:00:17]} 41. Re2+ {[%emt 0:01:26]} Kd6 {[%emt 0:00:06]} 42. Rc2 {[%emt 0:04:48]} Ke5 {[%emt 0:53:29]} 1/2-1/2

[Event "Marshall CC FIDE Premier March 2024"]
[Site "New York"]
[Date "2024.03.03"]
[Round "3.1"]
[White "Bortnyk, Mykola"]
[Black "Zeltsan, Joseph"]
[Result "1-0"]
[ECO "B22"]
[WhiteElo "2453"]
[BlackElo "2419"]
[Annotator "TA"]
[PlyCount "113"]
[EventDate "2024.02.02"]
[EventType "swiss"]
[EventCountry "USA"]
[SourceTitle "playchess.com"]
[Source "ChessBase"]
[SourceQuality "1"]
[TimeControl "5400+30"]

{[%evp 19,113,15,13,4,18,16,14,0,8,0,21,-2,12,13,13,0,9,10,32,10,28,8,6,0,0,0,10,17,15,14,13,6,32,27,37,31,106,110,145,99,103,97,99,101,107,107,127,126,131,134,148,131,137,137,137,131,137,124,446,322,422,244,258,0,154,154,147,147,147,147,147,146,146,146,571,539,1383,1308,3266,1772,29976,29977,29977,29978,29977,29979,29981,29982,29982,29979,29979,29980,29982,29983,29982,29983]} 1. e4 {[%emt 0:00:25]} c5 {[%emt 0:00:04]} 2. c3 {[%emt 0:00:16]} Nf6 {[%emt 0:00:10]} 3. e5 {[%emt 0:00:10]} Nd5 {[%emt 0:00:05]} 4. Bc4 {[%emt 0:00:12]} e6 {[%emt 0:00:16]} 5. Nf3 {[%emt 0:00:32]} Be7 {[%emt 0:00:16]} (5... d6 6. O-O dxe5 7. Nxe5 Bd6 8. d4 O-O 9. Nd2 Qc7 10. Ne4 Be7 11. Bb3 cxd4 12. cxd4 Nc6 13. Nxc6 Qxc6 14. Qf3 Rd8 15. Be3 b6 16. Rac1 Qe8 17. Bxd5 exd5 {1-0 Bortnyk,M (2421)-Zeltsan,J (2439) New York Marshall op 2024 (4)}) 6. d4 {[%emt 0:01:10] B22: Sicilian: 2 c3.} d6 {[%emt 0:06:22]} 7. exd6 {[%emt 0:09:17]} Qxd6 {[%emt 0:01:41]} 8. dxc5 {[%emt 0:04:28]} Qxc5 {[%emt 0:00:02]} 9. Bxd5 {[%emt 0:00:37]} exd5 {[%emt 0:01:33]} 10. O-O {[%emt 0:00:35]} O-O {[%emt 0:00:12]} 11. Bf4 $146 {[%emt 0:00:23]} ({Predecessor:} 11. Be3 Qd6 12. Nbd2 Bg4 13. h3 Bh5 14. Nb3 Nd7 15. Nbd4 Ne5 16. Bf4 Nxf3+ 17. Qxf3 Bxf3 18. Bxd6 Bxd6 19. Nxf3 {1-0 Rublevsky,S (2684)-Nikolov,M (2589) SRB-chT Valjevo 2011 (1.1)}) 11... Nc6 {[%emt 0:03:03]} 12. Nbd2 {[%emt 0:04:19]} Bg4 {[%emt 0:11:23]} 13. Qb3 {[%emt 0:03:47]} Na5 {[%emt 0:14:36]} 14. Qc2 {[%emt 0:01:54]} Nc4 {[%emt 0:05:48]} 15. Ne5 {[%emt 0:01:24]} Be6 {[%emt 0:01:01]} 16. Rfe1 {[%emt 0:02:55]} (16. Ndf3 {simplifies} Nxe5 17. Bxe5 f6 18. Bf4) 16... Rae8 {[%emt 0:18:40]} 17. Rad1 {[%emt 0:03:35]} Qc8 {[%emt 0:09:03]} 18. Ndf3 {[%emt 0:06:28]} Bf6 {[%emt 0:01:43]} 19. Qc1 {[%emt 0:04:37]} Rd8 {[%emt 0:06:44]} 20. Nd4 {[%emt 0:05:08]} Rfe8 {[%emt 0:00:31]} 21. Nxc4 {[%emt 0:03:58]} dxc4 {[%emt 0:00:53]} 22. Bg5 {[%emt 0:00:04]} Bxg5 {[%emt 0:04:49]} 23. Qxg5 {[%emt 0:01:28]} h6 {[%emt 0:05:13]} 24. Qf4 {[%emt 0:00:50]} Bd7 {[%emt 0:01:22]} 25. h3 {[%emt 0:01:33]} Qc5 {[%emt 0:02:13]} 26. Nf3 {[%emt 0:02:44]} Rxe1+ {[%emt 0:05:06]} 27. Nxe1 {[%emt 0:01:08]} (27. Rxe1 {simplifies} Bc6 28. Nd4 Qd6 29. Qxd6 Rxd6 30. Re5) 27... Re8 {[%emt 0:00:30]} (27... Qc8 $1 $14) 28. Rxd7 $16 {[%emt 0:00:24]} Rxe1+ {[%emt 0:00:02]} 29. Kh2 {[%emt 0:00:01]} Re7 {[%emt 0:00:11]} 30. Rxe7 {[%emt 0:01:19]} Qxe7 {[%emt 0:00:01]} 31. Qxc4 {[%emt 0:00:08]} Qd6+ {[%emt 0:00:44]} 32. g3 {[%emt 0:03:23]} Qb6 {[%emt 0:01:23]} 33. Qe2 {[%emt 0:00:24]} g6 {[%emt 0:00:30]} 34. b4 {[%emt 0:00:15]} h5 {[%emt 0:00:27]} 35. h4 {[%emt 0:00:17]} Qc7 {[%emt 0:00:35]} 36. c4 {[%emt 0:00:13]} Qd6 {[%emt 0:00:28]} 37. c5 {[%emt 0:00:23]} Qd4 {[%emt 0:00:22]} 38. a3 {[%emt 0:00:11]} a5 $2 {[%emt 0:00:56][%mdl 8192]} (38... a6 $16 39. Kg2 a5) 39. Qe3 {[%emt 0:00:36]} (39. bxa5 Qxc5 40. Qb2 Qxa5 $17) 39... Qc4 {[%emt 0:00:22]} 40. Qf4 {[%emt 0:00:51]} (40. bxa5 Qa4 41. Qc3 g5 42. hxg5 h4 $18) (40. Qe8+ $142 Kh7 41. c6 (41. bxa5 Qxc5 42. Qxf7+ Kh6 $18) 41... bxc6 42. bxa5) 40... Qd5 {[%emt 0:00:25]} 41. Qe3 $2 {[%emt 0:02:09]} ({And not} 41. bxa5 Qxc5 42. Qb8+ Kg7 $11) (41. Qd6 $18 Qf3 42. Qb8+ (42. bxa5 Qxf2+ 43. Kh3 Qf5+ 44. Kg2 Qe4+ 45. Kg1 Qe1+ 46. Kg2 Qxa5 $11) 42... Kg7 43. Qe5+ (43. bxa5 Qxf2+ 44. Kh3 Qxc5 $11) 43... Kf8 44. Qe3 (44. bxa5 Qxf2+ 45. Kh3 Qf1+ 46. Kh2 Qf2+ 47. Kh3 Qf1+ 48. Kh2 Qd3 $11)) 41... axb4 $2 {[%emt 0:00:27]} (41... Qc4 $1 $11) 42. axb4 $16 {[%emt 0:00:02]} Qc4 {[%emt 0:00:32]} 43. Qe8+ {[%emt 0:00:14]} Kg7 {[%emt 0:00:30]} 44. Qe5+ {[%emt 0:00:21]} Kh7 {[%emt 0:00:01]} 45. Qf4 {[%emt 0:04:36]} Qd5 {[%emt 0:00:25]} 46. Qd6 {[%emt 0:00:17]} Qf5 $2 {[%emt 0:01:07][%mdl 8192]} (46... Qe4 $16 {is a better chance.}) 47. Qd4 $18 {[%emt 0:00:12]} Qb1 {[%emt 0:00:39]} 48. Qc4 {[%emt 0:00:33]} Kg8 {[%emt 0:00:31]} 49. b5 {[%emt 0:00:06]} Kf8 {[%emt 0:00:24]} 50. c6 {[%emt 0:00:49]} bxc6 {[%emt 0:00:01]} 51. Qc5+ {[%emt 0:00:05]} Ke8 {[%emt 0:00:15]} 52. Qxc6+ {[%emt 0:00:05]} Kd8 {[%emt 0:00:40]} 53. b6 {[%emt 0:00:05]} Qb2 {[%emt 0:00:11]} 54. Qd6+ {[%emt 0:01:50]} Ke8 {[%emt 0:00:03]} 55. Kg2 {[%emt 0:00:05]} Qc2 {[%emt 0:01:09]} 56. Qb8+ {[%emt 0:00:45]} Kd7 {[%emt 0:00:50]} 57. Qa7+ {[%emt 0:00:05]} 1-0

[Event "Marshall CC FIDE Premier March 2024"]
[Site "New York"]
[Date "2024.03.03"]
[Round "3.2"]
[White "Rama, Tejas"]
[Black "Baalla, Nura"]
[Result "1-0"]
[ECO "D37"]
[WhiteElo "2221"]
[BlackElo "1932"]
[Annotator "RC"]
[PlyCount "71"]
[EventDate "2024.02.02"]
[EventType "swiss"]
[EventCountry "USA"]
[SourceTitle "playchess.com"]
[Source "ChessBase"]
[SourceQuality "1"]
[TimeControl "5400+30"]

1. d4 {[%emt 0:00:04]} Nf6 {[%emt 0:00:07]} 2. c4 {[%emt 0:00:06]} e6 {[%emt 0:00:02]} 3. Nf3 {[%emt 0:00:25]} d5 {[%emt 0:00:07]} 4. Nc3 {[%emt 0:00:15]} Be7 {[%emt 0:00:25]} 5. Bf4 {[%emt 0:00:06]} O-O {[%emt 0:00:22]} 6. e3 {[%emt 0:00:01]} b6 {[%emt 0:00:54]} 7. Bd3 {[%emt 1:33:03]} Bb7 {[%emt 0:01:02]} 8. cxd5 {[%emt 0:00:00]} exd5 {[%emt 0:00:10]} 9. O-O {[%emt 0:00:00]} a6 {[%emt 0:01:29]} 10. Rc1 {[%emt 0:00:00]} Nbd7 {[%emt 0:03:06]} 11. h3 {[%emt 0:00:00]} c5 {[%emt 0:05:24]} 12. b3 {[%emt 0:00:00]} Ne4 {[%emt 0:08:04]} 13. dxc5 {[%emt 0:00:00]} Ndxc5 {[%emt 0:01:10]} 14. Bb1 {[%emt 0:00:00]} a5 {[%emt 0:05:39]} 15. Nd4 {[%emt 0:00:00]} Bf6 {[%emt 0:04:23]} 16. Ncb5 {[%emt 0:00:00]} Bg5 {[%emt 0:08:45]} 17. Bc7 {[%emt 0:00:00]} Qf6 {[%emt 0:00:56]} 18. Qg4 {[%emt 0:00:00]} Bc8 {[%emt 0:21:00]} 19. Qe2 {[%emt 0:00:00]} Qh6 {[%emt 0:01:46]} 20. Nf3 {[%emt 0:00:00]} Be7 {[%emt 0:11:12]} 21. Bf4 {[%emt 0:00:00]} g5 {[%emt 0:00:41]} 22. Bh2 {[%emt 0:00:00]} g4 {[%emt 0:01:16]} 23. hxg4 {[%emt 0:00:00]} Bxg4 {[%emt 0:00:07]} 24. Nbd4 {[%emt 0:00:00]} Bf6 {[%emt 0:04:02]} 25. Qb5 {[%emt 0:00:00]} Qh5 {[%emt 0:02:33]} 26. Bxe4 {[%emt 0:00:00]} dxe4 {[%emt 0:00:59]} 27. Nd2 {[%emt 0:00:00]} Bxd4 {[%emt 0:08:34]} 28. exd4 {[%emt 0:00:00]} Bf3 {[%emt 0:00:03]} 29. dxc5 {[%emt 0:00:00]} Rad8 {[%emt 0:04:13]} 30. Nxf3 {[%emt 0:00:00]} exf3 {[%emt 0:00:02]} 31. Rc3 {[%emt 0:00:00]} Rd4 {[%emt 0:01:06]} 32. Rxf3 {[%emt 0:00:00]} Rh4 {[%emt 0:00:05]} 33. Rg3+ {[%emt 0:00:00]} Kh8 {[%emt 0:00:06]} 34. Qxb6 {[%emt 0:00:00]} f6 {[%emt 0:00:32]} 35. Qd6 {[%emt 0:00:00]} Qh6 {[%emt 0:00:02]} 36. Rf3 {[%emt 0:00:16]} 1-0

[Event "Marshall CC FIDE Premier March 2024"]
[Site "New York"]
[Date "2024.03.03"]
[Round "3.3"]
[White "Zhu, Linxi"]
[Black "Li, Michael"]
[Result "1/2-1/2"]
[ECO "B45"]
[WhiteElo "1981"]
[BlackElo "2035"]
[Annotator "RC"]
[PlyCount "81"]
[EventDate "2024.02.02"]
[EventType "swiss"]
[EventCountry "USA"]
[SourceTitle "playchess.com"]
[Source "ChessBase"]
[SourceQuality "1"]
[TimeControl "5400+30"]

1. e4 {[%emt 0:00:16]} c5 {[%emt 0:00:05]} 2. Nf3 {[%emt 0:00:10]} e6 {[%emt 0:00:06]} 3. d4 {[%emt 0:00:11]} cxd4 {[%emt 0:00:06]} 4. Nxd4 {[%emt 0:00:06]} Nf6 {[%emt 0:00:05]} 5. Nc3 {[%emt 0:00:16]} Nc6 {[%emt 0:00:07]} 6. Nxc6 {[%emt 0:00:54]} bxc6 {[%emt 0:00:05]} 7. e5 {[%emt 0:00:11]} Nd5 {[%emt 0:00:05]} 8. Ne4 {[%emt 0:00:04]} Bb7 {[%emt 0:00:10]} 9. c4 {[%emt 0:02:57]} Nb4 {[%emt 0:00:08]} 10. Bd2 {[%emt 0:02:42]} c5 {[%emt 0:01:28]} 11. Ng3 {[%emt 0:07:41]} Qc7 {[%emt 0:10:18]} 12. Bc3 {[%emt 0:03:12]} Rd8 {[%emt 0:01:49]} 13. a3 {[%emt 0:07:47]} Nc6 {[%emt 0:02:29]} 14. f4 {[%emt 0:00:21]} d6 {[%emt 0:06:32]} 15. Qa4 {[%emt 0:01:55]} dxe5 {[%emt 0:04:36]} 16. fxe5 {[%emt 0:00:23]} Qd7 {[%emt 0:01:44]} 17. Rd1 {[%emt 0:03:28]} Nd4 {[%emt 0:03:45]} 18. Qxd7+ {[%emt 0:00:26]} Rxd7 {[%emt 0:00:09]} 19. Bxd4 {[%emt 0:00:20]} Rxd4 {[%emt 0:00:16]} 20. Rxd4 {[%emt 0:00:07]} cxd4 {[%emt 0:00:01]} 21. Ne2 {[%emt 0:02:34]} g6 {[%emt 0:01:29]} 22. Nxd4 {[%emt 0:00:59]} Bg7 {[%emt 0:00:08]} 23. Nf3 {[%emt 0:02:22]} Bxf3 {[%emt 0:00:10]} 24. gxf3 {[%emt 0:00:06]} Bxe5 {[%emt 0:00:13]} 25. b3 {[%emt 0:00:11]} Bb2 {[%emt 0:01:07]} 26. a4 {[%emt 0:00:07]} Bc3+ {[%emt 0:01:03]} 27. Kd1 {[%emt 0:00:14]} Ke7 {[%emt 0:01:52]} 28. Kc2 {[%emt 0:00:42]} Bb4 {[%emt 0:00:09]} 29. Bd3 {[%emt 0:00:52]} a5 {[%emt 0:03:55]} 30. Rd1 {[%emt 0:00:53]} Rd8 {[%emt 0:00:55]} 31. Be4 {[%emt 0:00:36]} Rxd1 {[%emt 0:00:14]} 32. Kxd1 {[%emt 0:00:05]} f5 {[%emt 0:01:55]} 33. Bb7 {[%emt 0:00:17]} g5 {[%emt 0:00:29]} 34. Ke2 {[%emt 0:00:16]} Kd6 {[%emt 0:01:48]} 35. Kd3 {[%emt 0:01:21]} Ke5 {[%emt 0:00:47]} 36. Bc8 {[%emt 0:05:14]} h5 {[%emt 0:08:12]} 37. h3 {[%emt 0:00:59]} g4 {[%emt 0:03:12]} 38. fxg4 {[%emt 0:00:34]} fxg4 {[%emt 0:00:18]} 39. hxg4 {[%emt 0:00:05]} hxg4 {[%emt 0:00:04]} 40. Ke2 {[%emt 0:00:09]} Bc5 {[%emt 0:01:22]} 41. Ke1 {[%emt 0:58:57]} 1/2-1/2

[Event "Marshall CC FIDE Premier March 2024"]
[Site "New York"]
[Date "2024.03.03"]
[Round "3.5"]
[White "Peterson, Ryan H"]
[Black "Gartenlaub, Corin"]
[Result "1-0"]
[ECO "E81"]
[WhiteElo "2025"]
[BlackElo "1868"]
[Annotator "RC"]
[PlyCount "75"]
[EventDate "2024.02.02"]
[EventType "swiss"]
[EventCountry "USA"]
[SourceTitle "playchess.com"]
[Source "ChessBase"]
[SourceQuality "1"]
[TimeControl "5400+30"]

1. d4 {[%emt 0:00:25]} Nf6 {[%emt 0:00:08]} 2. c4 {[%emt 0:00:07]} g6 {[%emt 0:00:03]} 3. Nc3 {[%emt 0:00:07]} Bg7 {[%emt 0:00:06]} 4. e4 {[%emt 0:00:12]} d6 {[%emt 0:00:04]} 5. f3 {[%emt 0:00:44]} O-O {[%emt 0:00:07]} 6. Be3 {[%emt 0:00:03]} c5 {[%emt 0:00:03]} 7. Nge2 {[%emt 0:00:38]} Qa5 {[%emt 0:00:26]} 8. Qd2 {[%emt 0:01:56]} Nbd7 {[%emt 0:00:55]} 9. d5 {[%emt 0:01:29]} Ne5 {[%emt 0:01:20]} 10. Ng3 {[%emt 0:03:41]} h5 {[%emt 0:01:39]} 11. Be2 {[%emt 0:00:19]} a6 {[%emt 0:05:37]} 12. O-O {[%emt 0:01:51]} Rb8 {[%emt 0:05:05]} 13. a4 {[%emt 0:05:21]} Qc7 {[%emt 0:12:40]} 14. h3 {[%emt 0:08:24]} b6 {[%emt 0:01:46]} 15. f4 {[%emt 0:03:29]} Ned7 {[%emt 0:01:40]} 16. Rad1 {[%emt 0:04:30]} Rd8 {[%emt 0:04:18]} 17. Bd3 {[%emt 0:03:33]} Nf8 {[%emt 0:03:43]} 18. Qf2 {[%emt 0:02:41]} e6 {[%emt 0:01:10]} 19. Bc2 {[%emt 0:13:56]} exd5 {[%emt 0:02:06]} 20. exd5 {[%emt 0:02:09]} Re8 {[%emt 0:02:55]} 21. Rfe1 {[%emt 0:02:36]} Bd7 {[%emt 0:01:36]} 22. f5 {[%emt 0:02:24]} b5 {[%emt 0:08:06]} 23. axb5 {[%emt 0:01:00]} axb5 {[%emt 0:00:08]} 24. cxb5 {[%emt 0:00:11]} Re5 {[%emt 0:01:30]} 25. Bf4 {[%emt 0:02:41]} Rxe1+ {[%emt 0:00:54]} 26. Qxe1 {[%emt 0:01:09]} Bxb5 {[%emt 0:00:50]} 27. Nge4 {[%emt 0:02:37]} Nxe4 {[%emt 0:03:10]} 28. Nxe4 {[%emt 0:01:06]} Bd4+ {[%emt 0:00:06]} 29. Kh1 {[%emt 0:00:43]} Rb6 {[%emt 0:08:16]} 30. Qg3 {[%emt 0:02:00]} h4 {[%emt 0:12:31]} 31. Qxh4 {[%emt 0:00:40]} gxf5 {[%emt 0:00:10]} 32. Nf6+ {[%emt 0:00:24]} Bxf6 {[%emt 0:00:19]} 33. Qxf6 {[%emt 0:00:03]} Nh7 {[%emt 0:01:14]} 34. Qxf5 {[%emt 0:00:06]} f6 {[%emt 0:00:06]} 35. Qe6+ {[%emt 0:00:17]} Kg7 {[%emt 0:02:53]} 36. Re1 {[%emt 0:02:20]} Nf8 {[%emt 0:00:38]} 37. Bh6+ {[%emt 0:00:41]} Kxh6 {[%emt 0:00:22]} 38. Qxf6+ {[%emt 0:00:02]} 1-0